bitfinex-derivatives/quotes_SOLF0:USTF0_20241002
["timestamp","ask_amount","ask_price","bid_price","bid_amount"]
[1727901174733,1.0,139.59,139.54,34.76598391]
[1727901174734,4.5826,139.59,139.54,34.76598391]
[1727901174933,4.5826,139.59,139.55,8.78]
[1727901175735,1.0,139.59,139.55,8.78]
[1727901175935,3.5829,139.58,139.55,8.78]
[1727901176133,1.0,139.59,139.52,27.63]
[1727901176436,3.5829,139.57,139.52,27.63]
[1727901176636,1.0,139.59,139.52,27.63]
[1727901177736,3.5838,139.54,139.52,27.63]
[1727901178244,3.5839,139.53,139.52,27.63]
[1727901178742,1.0,139.59,139.52,27.63]
[1727901178938,3.5838,139.54,139.52,27.63]
[1727901179238,1.0,139.59,139.5,27.63]
[1727901179442,3.5841,139.53,139.5,27.63]
[1727901179653,1.0,139.59,139.52,27.63]
[1727901179944,1.0,139.59,139.55,27.63]
[1727901180445,4.5826,139.59,139.55,27.63]
[1727901180834,1.0,139.59,139.58,27.63]
[1727901181229,1.0,139.59,139.54,27.63]
[1727901181645,3.5828,139.58,139.54,31.2135]
[1727901181946,1.0,139.59,139.52,27.63]
[1727901182170,3.5829,139.57,139.52,27.63]
[1727901182439,1.0,139.59,139.52,27.63]
[1727901182642,3.5836,139.55,139.52,27.63]
[1727901182939,3.60741143,139.57,139.52,27.63]
[1727901183139,4.138,139.56,139.49,0.12502]
[1727901183340,3.65291612,139.55,139.49,0.12502]
[1727901184146,3.5847,139.5,139.49,0.12502]
[1727901184647,44.14780212,139.56,139.43,27.75502]
[1727901184648,3.5857,139.47,139.43,27.75502]
[1727901184865,8.78,139.51,139.43,0.12502]
[1727901185336,0.12502,139.55,139.43,27.75502]
[1727901185539,8.78,139.54,139.43,27.75502]
[1727901185751,8.78,139.54,139.44,3.5861]
[1727901185752,3.5852,139.49,139.44,3.5861]
[1727901186136,0.12502,139.55,139.45,27.63]
[1727901186342,3.5844,139.52,139.47,3.5855]
[1727901186541,8.78,139.51,139.43,0.12502]
[1727901186747,0.12502,139.55,139.45,27.63]
[1727901187055,0.12502,139.55,139.46,3.5855]
[1727901187056,3.5846,139.51,139.46,3.5855]
[1727901187349,0.12502,139.55,139.47,27.63]
[1727901187734,0.12502,139.55,139.47,31.2153]
[1727901188134,0.12502,139.55,139.47,31.29655521]
[1727901188334,3.5841,139.53,139.47,31.29655521]
[1727901188637,0.12502,139.55,139.49,27.63]
[1727901188838,0.12502,139.55,139.5,3.5847]
[1727901189348,3.70862,139.55,139.5,3.5847]
[1727901189745,0.12502,139.55,139.48,10.1873]
[1727901189947,3.70862,139.55,139.48,10.1873]
[1727901190142,0.12502,139.55,139.52,27.63]
[1727901190336,0.12502,139.55,139.53,3.5838]
[1727901190746,0.12502,139.55,139.52,27.63]
[1727901191143,0.12502,139.55,139.48,1.4073]
[1727901191343,3.5845,139.51,139.48,1.4073]
[1727901191545,0.12502,139.55,139.48,1.4073]
[1727901192151,3.5838,139.54,139.5,3.5847]
[1727901192342,0.12502,139.55,139.5,27.63]
[1727901192646,0.12502,139.55,139.54,3.5837]
[1727901192844,0.12502,139.55,139.48,1.4073]
[1727901193044,0.12502,139.55,139.5,27.63]
[1727901193248,0.12502,139.55,139.48,29.0373]
[1727901193853,3.5841,139.53,139.49,3.5849]
[1727901194147,0.12502,139.55,139.48,29.0373]
[1727901194346,3.70852,139.55,139.51,3.5843]
[1727901194646,0.12502,139.55,139.5,27.63]
[1727901195552,0.12502,139.55,139.53,3.5837]
[1727901196347,0.12502,139.55,139.54,3.5837]
[1727901197248,1.0,139.59,139.57,3.5828]
[1727901197448,1.0,139.62,139.57,9.2]
[1727901197648,1.0,139.62,139.6,27.63]
[1727901197952,1.0,139.64,139.6,31.25360137]
[1727901198255,1.12502,139.67,139.63,3.5814]
[1727901198556,1.12502,139.67,139.65,27.63]
[1727901199053,1.12502,139.67,139.65,31.2106]
[1727901199655,1.12502,139.67,139.64,3.5811]
[1727901199954,1.12502,139.67,139.64,27.63]
[1727901200151,1.12502,139.67,139.66,3.5806]
[1727901200352,1.12502,139.67,139.64,27.63]
[1727901200554,1.12502,139.67,139.61,41.80301817]
[1727901200852,1.12502,139.67,139.63,27.63]
[1727901201050,1.0,139.69,139.66,27.63]
[1727901201247,1.0,139.69,139.67,3.5804]
[1727901201447,1.0,139.72,139.66,36.83]
[1727901201448,1.0,139.72,139.68,27.63]
[1727901201941,1.0,139.72,139.69,3.5797]
[1727901202353,1.0,139.72,139.68,27.63]
[1727901202550,1.0,139.72,139.7,31.2094]
[1727901202745,1.0,139.72,139.71,9.2]
[1727901203655,1.0,139.72,139.68,27.63]
[1727901203863,1.0,139.72,139.67,1.3573]
[1727901204152,1.0,139.72,139.68,27.63]
[1727901204856,0.12502,139.73,139.7,27.63]
[1727901205151,1.0,139.76,139.7,27.63]
[1727901205152,1.0,139.76,139.72,27.63]
[1727901205356,1.0,139.76,139.74,3.5784]
[1727901205757,1.0,139.76,139.73,1.3747]
[1727901205955,2.3832,139.84,139.74,27.63]
[1727901206150,2.3832,139.84,139.78,27.63]
[1727901206476,4.70232,139.79,139.78,27.63]
[1727901206756,1.12502,139.79,139.78,27.63]
[1727901206963,1.12502,139.79,139.78,31.2075]
[1727901207144,1.12502,139.79,139.78,27.63]
[1727901207660,4.70232,139.79,139.78,27.63]
[1727901207853,1.12502,139.79,139.77,9.2]
[1727901208455,1.12502,139.79,139.74,1.4321]
[1727901208456,3.5775,139.78,139.74,10.6321]
[1727901208652,1.12502,139.79,139.74,10.6321]
[1727901209057,4.70242,139.79,139.75,3.5781]
[1727901209464,1.12502,139.79,139.75,3.5781]
[1727901209660,1.12502,139.79,139.74,10.6321]
[1727901209866,1.12502,139.79,139.75,31.19779749]
[1727901210458,1.0,139.81,139.78,27.63]
[1727901210758,1.0,139.81,139.79,9.2]
[1727901210952,1.0,139.81,139.79,12.7771]
[1727901212651,4.5769,139.81,139.77,3.5777]
[1727901213065,1.0,139.81,139.76,9.2]
[1727901213252,3.5772,139.8,139.76,9.2]
[1727901213455,1.0,139.81,139.76,9.2]
[1727901214556,1.0,139.81,139.74,9.2]
[1727901214956,1.0,139.81,139.73,0.12502]
[1727901215154,30.4508,139.8,139.73,0.12502]
[1727901215360,2.8208,139.8,139.73,0.12502]
[1727901215559,3.5782,139.76,139.73,0.12502]
[1727901216062,2.8208,139.8,139.73,0.12502]
[1727901216269,27.63,139.79,139.73,0.12502]
[1727901216566,27.63,139.76,139.67,0.12502]
[1727901216756,27.63,139.74,139.67,0.12502]
[1727901216953,27.63,139.71,139.61,0.12502]
[1727901217153,11.9675,139.7,139.61,0.12502]
[1727901217367,2.7675,139.7,139.62,3.5815]
[1727901217567,2.7675,139.7,139.61,0.12502]
[1727901218957,27.63,139.69,139.61,0.12502]
[1727901219464,28.63,139.69,139.61,0.12502]
[1727901220358,27.63,139.64,139.56,1.001]
[1727901220566,9.2,139.63,139.56,1.001]
[1727901220763,12.82516546,139.63,139.56,1.001]
[1727901221065,3.5822,139.6,139.56,1.001]
[1727901221364,9.2,139.63,139.56,1.001]
[1727901221565,0.12502,139.67,139.56,1.001]
[1727901221566,0.12502,139.67,139.58,27.63]
[1727901221773,0.12502,139.67,139.61,3.5817]
[1727901222260,3.79425062,139.67,139.59,3.5823]
[1727901222455,0.12502,139.67,139.59,3.5823]
[1727901223065,0.12502,139.67,139.6,27.63]
[1727901223364,0.12502,139.67,139.6,36.81]
[1727901223761,3.70552,139.67,139.62,3.5815]
[1727901224261,0.12502,139.67,139.6,36.81]
[1727901224463,0.12502,139.67,139.63,27.63]
[1727901224669,0.12502,139.67,139.6,36.81]
[1727901225171,12.85760818,139.67,139.56,37.831]
[1727901225360,9.32502,139.67,139.56,37.831]
[1727901225562,3.5814,139.63,139.58,3.5824]
[1727901225763,9.32502,139.67,139.56,37.831]
[1727901226059,12.98297888,139.67,139.56,37.831]
[1727901226372,3.5813,139.64,139.58,3.5825]
[1727901227266,9.32502,139.67,139.59,27.63]
[1727901227665,0.12502,139.67,139.59,27.63]
[1727901227868,3.70562,139.67,139.62,3.5814]
[1727901228268,3.5809,139.65,139.6,3.5821]
[1727901229972,0.12502,139.67,139.6,3.5821]
[1727901230269,27.75502,139.67,139.56,1.001]
[1727901230667,3.5818,139.62,139.57,3.5828]
[1727901230975,9.2,139.65,139.56,28.631]
[1727901231467,3.5813,139.64,139.56,28.631]
[1727901231774,3.5814,139.63,139.57,3.5828]
[1727901232075,9.2,139.66,139.56,1.001]
[1727901232370,3.5826,139.59,139.56,1.001]
[1727901232573,9.2,139.66,139.56,1.001]
[1727901232875,3.582,139.61,139.56,4.5842]
[1727901233071,9.2,139.66,139.56,1.001]
[1727901233276,3.5828,139.58,139.56,1.001]
[1727901233474,27.63,139.65,139.56,1.001]
[1727901234172,27.63,139.65,139.55,0.12502]
[1727901234173,27.63,139.6,139.55,0.12502]
[1727901234367,27.63,139.58,139.53,1.001]
[1727901234564,9.2,139.57,139.51,1.001]
[1727901235083,3.5842,139.52,139.51,1.001]
[1727901235381,9.2,139.57,139.51,1.001]
[1727901235770,3.5842,139.52,139.51,1.001]
[1727901236081,31.14844568,139.58,139.51,1.001]
[1727901236269,3.8015,139.59,139.51,4.5853]
[1727901236474,7.31033841,139.59,139.51,1.001]
[1727901237179,3.5835,139.55,139.51,1.001]
[1727901237477,27.63,139.58,139.51,1.001]
[1727901237870,3.5842,139.52,139.51,1.001]
[1727901238074,27.63,139.58,139.51,1.001]
[1727901239080,3.5832,139.56,139.51,1.001]
[1727901239285,7.31033841,139.59,139.51,1.001]
[1727901239487,3.8015,139.59,139.51,4.66542834]
[1727901239686,3.5829,139.58,139.54,3.5836]
[1727901240083,0.12502,139.61,139.54,27.63]
[1727901240387,0.12502,139.61,139.57,3.5828]
[1727901240578,0.12502,139.61,139.53,8.78]
[1727901240780,3.5837,139.54,139.53,8.78]
[1727901240982,0.12502,139.61,139.53,8.78]
[1727901241178,0.12502,139.61,139.52,31.27650412]
[1727901241478,0.12502,139.61,139.54,27.63]
[1727901241678,0.12502,139.61,139.55,8.78]
[1727901241881,0.12502,139.61,139.57,27.63]
[1727901242376,0.12502,139.61,139.6,3.5821]
[1727901243189,0.12502,139.67,139.6,8.78]
[1727901243374,0.12502,139.67,139.63,27.63]
[1727901243585,0.12502,139.67,139.61,29.0715]
[1727901243779,0.12502,139.67,139.6,8.78]
[1727901243780,0.12502,139.67,139.58,27.63]
[1727901243983,3.68170856,139.67,139.57,8.78]
[1727901244176,1.3323,139.66,139.56,1.4415]
[1727901244387,1.3323,139.66,139.55,6.47542]
[1727901244388,3.5824,139.59,139.55,6.47542]
[1727901244580,8.78,139.63,139.55,0.12502]
[1727901244777,3.582,139.61,139.55,0.12502]
[1727901244980,8.78,139.63,139.55,0.12502]
[1727901246185,2.7684,139.65,139.56,53.51]
[1727901246386,1.3323,139.66,139.59,44.73]
[1727901246591,0.12502,139.67,139.59,48.36373505]
[1727901246789,0.12502,139.67,139.61,44.73]
[1727901246981,3.70542,139.67,139.63,3.5811]
[1727901247186,0.12502,139.67,139.61,57.11255496]
[1727901247390,0.12502,139.67,139.64,44.73]
[1727901247591,0.12502,139.67,139.66,3.5806]
[1727901247887,0.12502,139.67,139.61,57.11255496]
[1727901248088,3.70552,139.67,139.63,3.5812]
[1727901248385,0.12502,139.67,139.61,57.11255496]
[1727901248589,0.12502,139.67,139.63,44.73]
[1727901249707,0.12502,139.67,139.63,48.3112]
[1727901249890,0.12502,139.67,139.63,44.73]
[1727901250285,0.12502,139.67,139.64,3.5809]
[1727901250588,0.12502,139.67,139.63,44.73]
[1727901250987,0.12502,139.67,139.64,3.5809]
[1727901251296,3.70542,139.67,139.64,3.5809]
[1727901251592,0.12502,139.67,139.61,8.78]
[1727901251793,3.5811,139.65,139.61,8.78]
[1727901251997,0.12502,139.67,139.63,3.5814]
[1727901252183,0.12502,139.67,139.61,8.78]
[1727901252184,0.12502,139.67,139.64,44.73]
[1727901252382,1.0,139.76,139.66,44.73]
[1727901252592,1.0,139.76,139.7,3.5794]
[1727901252783,1.0,139.76,139.68,53.51]
[1727901253291,1.0,139.76,139.71,44.73]
[1727901253481,1.0,139.76,139.69,1.3433]
[1727901254387,3.5796,139.7,139.68,8.78]
[1727901254592,54.51,139.76,139.63,8.78]
[1727901254989,9.78,139.76,139.63,8.78]
[1727901255192,54.51,139.76,139.63,8.78]
[1727901255397,44.73,139.71,139.63,8.78]
[1727901255591,2.6345,139.7,139.62,1.3433]
[1727901255796,4.0686,139.7,139.61,0.12502]
[1727901255997,3.5803,139.68,139.61,0.12502]
[1727901256195,4.0686,139.7,139.61,0.12502]
[1727901256585,3.5816,139.62,139.61,0.12502]
[1727901257194,3.5814,139.63,139.61,0.12502]
[1727901257702,12.32768733,139.66,139.61,0.12502]
[1727901257889,3.5816,139.62,139.61,0.12502]
[1727901258593,12.30833158,139.66,139.61,0.12502]
[1727901259002,3.5816,139.62,139.61,0.12502]
[1727901259992,44.73,139.67,139.61,0.12502]
[1727901260195,8.78,139.69,139.61,3.70692]
[1727901260392,8.78,139.69,139.61,0.12502]
[1727901260597,4.0686,139.7,139.63,48.3113]
[1727901260598,3.5804,139.67,139.63,48.3113]
[1727901260902,4.0686,139.7,139.61,0.12502]
[1727901261292,3.5815,139.63,139.61,0.12502]
[1727901261698,3.5816,139.62,139.61,0.12502]
[1727901262293,44.73,139.69,139.61,0.12502]
[1727901262489,4.0686,139.7,139.61,0.12502]
[1727901263202,44.73,139.69,139.61,0.12502]
[1727901264507,3.5815,139.63,139.61,0.12502]
[1727901265498,4.0686,139.7,139.66,3.5806]
[1727901265802,4.0686,139.7,139.61,0.12502]
[1727901266205,3.5811,139.65,139.61,3.70672]
[1727901266402,3.5811,139.65,139.61,0.12502]
[1727901267008,53.51,139.67,139.61,0.12502]
[1727901267409,3.5814,139.63,139.61,0.12502]
[1727901267596,8.78,139.67,139.61,0.12502]
[1727901269511,3.5813,139.64,139.61,0.12502]
[1727901269809,8.78,139.67,139.61,0.12502]
[1727901270011,3.5816,139.62,139.61,0.12502]
[1727901271309,44.73,139.63,139.55,1.45572]
[1727901271610,3.5826,139.59,139.55,5.03902]
[1727901273717,2.8468,139.63,139.55,5.03902]
[1727901274105,290.23,139.74,139.56,44.73]
[1727901274106,0.12502,139.67,139.56,44.73]
[1727901274310,0.12502,139.67,139.57,1.3784]
[1727901274614,0.12502,139.67,139.58,8.76]
[1727901274919,0.12502,139.67,139.55,1.45572]
[1727901274920,44.85502,139.67,139.55,10.21572]
[1727901275211,44.85502,139.67,139.56,3.5832]
[1727901275512,0.12502,139.67,139.58,44.73]
[1727901275704,0.12502,139.67,139.62,3.5815]
[1727901275705,3.5808,139.66,139.62,3.5815]
[1727901275900,0.12502,139.67,139.6,8.76]
[1727901276314,3.5809,139.65,139.61,3.5818]
[1727901277013,3.5812,139.64,139.6,12.3421]
[1727901277412,0.12502,139.67,139.6,8.76]
[1727901277616,0.12502,139.67,139.57,8.76]
[1727901278115,3.5815,139.63,139.59,3.5822]
[1727901278711,0.12502,139.67,139.57,8.76]
[1727901278909,0.12502,139.67,139.58,44.73]
[1727901279115,0.12502,139.67,139.57,8.76]
[1727901279303,0.12502,139.67,139.58,3.60412855]
[1727901279513,3.5811,139.64,139.6,3.582]
[1727901279729,0.12502,139.67,139.57,8.76]
[1727901280010,3.5816,139.63,139.59,3.5823]
[1727901280719,3.59947159,139.65,139.55,1.45572]
[1727901280908,8.76,139.66,139.56,8.76]
[1727901281108,3.56641191,139.65,139.56,8.76]
[1727901281423,3.5823,139.6,139.56,12.343]
[1727901282112,3.5823,139.6,139.57,3.5829]
[1727901283112,3.5818,139.62,139.59,3.5822]
[1727901283313,0.12502,139.67,139.56,8.76]
[1727901283813,3.5821,139.61,139.58,3.5825]
[1727901284714,3.5826,139.59,139.56,3.5831]
[1727901284914,1.3691,139.64,139.55,10.21572]
[1727901285409,3.582,139.61,139.55,10.21572]
[1727901285814,1.3691,139.64,139.55,10.21572]
[1727901286016,1.3691,139.64,139.59,3.5822]
[1727901286212,1.3691,139.64,139.55,10.21572]
[1727901286514,1.3691,139.64,139.55,1.45572]
[1727901286712,8.5087,139.63,139.55,1.45572]
[1727901286910,1.3457,139.63,139.55,1.45572]
[1727901287504,3.5823,139.6,139.57,3.5828]
[1727901287703,3.5823,139.6,139.55,1.45572]
[1727901288308,3.5823,139.6,139.57,3.5829]
[1727901290920,1.3457,139.63,139.55,1.45572]
[1727901291116,44.73,139.62,139.55,0.12502]
[1727901291317,10.1845,139.61,139.55,0.12502]
[1727901291523,3.583,139.57,139.55,0.12502]
[1727901291834,10.1845,139.61,139.55,0.12502]
[1727901292721,3.5829,139.58,139.55,0.12502]
[1727901293318,10.1845,139.61,139.55,0.12502]
[1727901293622,1.4245,139.61,139.55,3.70832]
[1727901294112,1.4245,139.61,139.55,0.12502]
[1727901294614,3.5832,139.56,139.55,0.12502]
[1727901297532,12.36573688,139.58,139.51,1.001]
[1727901297716,1.3526,139.55,139.51,1.001]
[1727901297915,4.98020286,139.55,139.51,1.001]
[1727901298318,1.4348,139.54,139.51,1.001]
[1727901298527,3.5842,139.52,139.51,1.001]
[1727901300330,3.5847,139.5,139.49,1.12602]
[1727901300823,1.4348,139.54,139.49,1.12602]
[1727901301024,5.05438357,139.54,139.49,1.12602]
[1727901301237,3.5847,139.5,139.49,1.12602]
[1727901303025,8.76,139.5,139.44,1.001]
[1727901303227,3.586,139.45,139.44,1.001]
[1727901303434,3.586,139.45,139.43,0.12502]
[1727901303435,27.53,139.47,139.43,0.12502]
[1727901303623,3.5863,139.44,139.43,0.12502]
[1727901304333,1.0,139.49,139.43,0.12502]
[1727901304741,3.5863,139.44,139.43,0.12502]
[1727901305231,31.19435434,139.45,139.39,1.001]
[1727901305426,27.53,139.42,139.39,1.001]
[1727901305732,8.76,139.41,139.39,1.001]
[1727901306026,8.76,139.41,139.37,0.12502]
[1727901306027,3.5878,139.38,139.37,0.12502]
[1727901307235,3.5877,139.39,139.37,0.12502]
[1727901307530,12.42747179,139.42,139.37,0.12502]
[1727901308129,2.3999,139.43,139.37,0.12502]
[1727901308332,27.53,139.47,139.37,0.12502]
[1727901308523,8.76,139.46,139.37,0.12502]
[1727901308728,1.4302,139.48,139.42,3.5868]
[1727901309019,0.12502,139.49,139.39,11.4679]
[1727901309220,0.12502,139.49,139.44,3.5861]
[1727901309424,3.5859,139.46,139.39,11.4679]
[1727901309626,0.12502,139.49,139.39,11.4679]
[1727901310019,3.5853,139.48,139.39,11.4679]
[1727901310218,0.12502,139.49,139.4,27.53]
[1727901310630,0.12502,139.49,139.43,27.53]
[1727901310830,0.12502,139.49,139.48,3.5852]
[1727901311022,3.64833495,139.57,139.48,3.51849842]
[1727901311219,10.0984,139.59,139.48,27.53]
[1727901311425,1.3384,139.59,139.5,27.53]
[1727901311737,0.12502,139.61,139.5,27.53]
[1727901312034,27.53,139.6,139.49,1.3946]
[1727901312433,3.70862,139.55,139.5,3.5847]
[1727901312634,0.12502,139.55,139.49,1.3946]
[1727901312925,3.584,139.53,139.49,1.3946]
[1727901313133,0.12502,139.55,139.49,1.3946]
[1727901314936,0.12502,139.55,139.51,3.5844]
[1727901315138,0.12502,139.55,139.49,1.3946]
[1727901315339,0.12502,139.55,139.51,3.5843]
[1727901315528,0.12502,139.55,139.49,1.3946]
[1727901315938,3.70862,139.55,139.5,3.5845]
[1727901316235,3.70862,139.55,139.49,1.3946]
[1727901316437,0.12502,139.55,139.49,1.3946]
[1727901316639,3.5837,139.54,139.5,3.5846]
[1727901317135,3.5844,139.52,139.49,1.3946]
[1727901317333,0.12502,139.55,139.49,1.3946]
[1727901317738,0.12502,139.55,139.54,3.5837]
[1727901318134,0.12502,139.55,139.5,27.53]
[1727901318344,3.70852,139.55,139.51,3.5844]
[1727901319336,0.12502,139.55,139.52,3.5842]
[1727901319739,0.12502,139.55,139.5,27.53]
[1727901320137,3.70852,139.55,139.51,3.5843]
[1727901321141,3.70852,139.55,139.52,3.5842]
[1727901321643,3.5837,139.54,139.49,1.3946]
[1727901321840,3.5837,139.54,139.51,3.5843]
[1727901322236,3.70852,139.55,139.49,1.3946]
[1727901322741,0.12502,139.55,139.49,1.3946]
[1727901323639,3.6817995,139.55,139.47,1.3412]
[1727901323842,0.12502,139.55,139.47,1.3412]
[1727901324233,27.53,139.54,139.44,1.4096]
[1727901324430,31.11438478,139.54,139.44,1.4096]
[1727901324636,27.53,139.52,139.43,10.30612]
[1727901324844,3.58438478,139.54,139.43,1.54612]
[1727901325145,3.58438478,139.54,139.43,29.07612]
[1727901325346,1.47072,139.55,139.43,32.74081106]
[1727901325548,3.5841,139.53,139.49,3.5849]
[1727901325843,1.47072,139.55,139.43,5.21116957]
[1727901325844,27.53,139.51,139.43,5.21116957]
[1727901326045,12.23357711,139.55,139.43,5.21116957]
[1727901326046,27.53,139.53,139.43,5.21116957]
[1727901326346,27.53,139.53,139.43,1.54612]
[1727901326741,27.53,139.53,139.45,3.586]
[1727901326742,3.5851,139.49,139.45,3.586]
[1727901326941,27.53,139.53,139.45,3.586]
[1727901327439,27.53,139.53,139.43,1.54612]
[1727901327641,3.5855,139.47,139.43,5.13252]
[1727901327844,5.06657711,139.55,139.43,1.54612]
[1727901327845,36.29,139.51,139.43,1.54612]
[1727901328146,1.3432,139.5,139.43,3.71142]
[1727901328748,12.3446,139.51,139.43,3.69332229]
[1727901328938,5.06657711,139.55,139.43,3.69332229]
[1727901328939,6.40977711,139.55,139.44,8.76]
[1727901329139,3.5842,139.53,139.48,3.585]
[1727901329448,15.16977711,139.55,139.48,3.585]
[1727901330149,10.23072,139.55,139.5,3.5846]
[1727901330349,0.12502,139.55,139.46,1.4317]
[1727901330655,3.70872,139.55,139.5,3.5846]
[1727901330949,0.12502,139.55,139.46,1.4317]
[1727901331147,3.5839,139.54,139.48,3.5851]
[1727901331442,0.12502,139.55,139.46,1.4317]
[1727901332048,3.5838,139.54,139.5,3.5845]
[1727901332351,0.12502,139.55,139.46,1.4317]
[1727901332553,3.70852,139.55,139.49,8.76]
[1727901332849,0.12502,139.55,139.49,8.76]
[1727901333048,3.5838,139.54,139.51,3.5843]
[1727901333347,0.12502,139.55,139.49,8.76]
[1727901333540,0.12502,139.55,139.5,1.3476]
[1727901333943,0.12502,139.55,139.5,28.8776]
[1727901334153,3.583,139.57,139.54,3.5836]
[1727901334341,27.53,139.6,139.5,1.3476]
[1727901334541,0.12502,139.61,139.5,1.3476]
[1727901334542,27.53,139.58,139.5,1.3476]
[1727901334844,27.53,139.58,139.49,0.12502]
[1727901334845,3.5847,139.5,139.49,0.12502]
[1727901335546,1.3192,139.55,139.49,0.12502]
[1727901335949,3.5845,139.51,139.49,0.12502]
[1727901336248,1.3192,139.55,139.49,0.12502]
[1727901336451,3.583,139.57,139.53,3.5839]
[1727901336744,8.76,139.6,139.5,12.41634896]
[1727901336951,8.76,139.6,139.5,8.76]
[1727901337151,3.5829,139.57,139.5,12.3446]
[1727901337354,27.53,139.59,139.49,0.12502]
[1727901337652,27.53,139.56,139.49,0.12502]
[1727901338148,3.5845,139.51,139.49,0.12502]
[1727901338753,3.5847,139.5,139.49,0.12502]
[1727901338952,30.3381,139.54,139.49,0.12502]
[1727901339144,2.8081,139.54,139.49,0.12502]
[1727901339342,1.3664,139.54,139.49,3.70992]
[1727901339764,27.53,139.56,139.49,0.12502]
[1727901340451,3.5841,139.53,139.49,0.12502]
[1727901341243,3.5841,139.53,139.49,3.70992]
[1727901341947,3.5843,139.52,139.49,0.12502]
[1727901342258,27.53,139.56,139.49,0.12502]
[1727901342447,10.1264,139.57,139.49,0.12502]
[1727901342648,27.53,139.53,139.49,0.12502]
[1727901342854,3.62867824,139.52,139.49,0.12502]
[1727901343046,3.5847,139.5,139.49,0.12502]
[1727901343256,8.76,139.52,139.43,0.12502]
[1727901343457,31.03035,139.51,139.43,0.12502]
[1727901343752,27.53,139.51,139.43,0.12502]
[1727901343953,1.411,139.5,139.43,0.12502]
[1727901344258,27.53,139.49,139.43,0.12502]
[1727901344952,3.5863,139.44,139.43,0.12502]
[1727901345150,3.60967992,139.44,139.37,0.12502]
[1727901345351,27.53,139.43,139.37,0.12502]
[1727901345553,28.8444,139.43,139.37,0.12502]
[1727901346250,8.76,139.42,139.37,0.12502]
[1727901347352,3.5878,139.38,139.37,0.12502]
[1727901348148,3.5881,139.37,139.36,1.001]
[1727901353260,7.20521567,139.37,139.36,1.001]
[1727901353455,1.43942,139.43,139.36,1.001]
[1727901353651,3.5872,139.41,139.36,1.001]
[1727901354957,1.43942,139.43,139.36,1.001]
[1727901355267,0.12502,139.43,139.36,1.001]
[1727901355468,0.12502,139.43,139.37,27.53]
[1727901355761,0.12502,139.43,139.42,3.5868]
[1727901356666,0.12502,139.49,139.39,27.53]
[1727901356857,0.12502,139.49,139.37,36.41502]
[1727901357159,3.5864,139.44,139.39,3.5873]
[1727901357569,27.53,139.48,139.37,36.41502]
[1727901357752,3.5856,139.47,139.43,3.5863]
[1727901358059,0.12502,139.49,139.39,27.53]
[1727901358263,0.12502,139.49,139.37,8.88502]
[1727901358264,0.12502,139.49,139.41,27.53]
[1727901358461,0.12502,139.49,139.42,11.4712]
[1727901358665,0.12502,139.49,139.44,27.53]
[1727901359361,0.12502,139.49,139.42,11.4712]
[1727901360271,0.12502,139.49,139.44,27.53]